fUST/lending_fUST_20250812
["ID","MTS","AMOUNT","RATE_DAILY","PERIOD"]
[378653046,1754944245454,-3821.73,0.00019178,2]
[378653047,1754944245464,-3821.73,0.00019178,2]
[378653048,1754944245473,-460.0,0.00019178,2]
[378653049,1754944245482,-460.0,0.00019178,2]
[378653050,1754944245491,-787.67,0.00019178,2]
[378653051,1754944245501,-3821.73,0.00019178,2]
[378653052,1754944245510,-1119.95,0.00019178,2]
[378653053,1754944245519,-3821.73,0.00019178,2]
[378653054,1754944245528,-2972.11,0.00019178,2]
[378653055,1754944245538,-3821.82961736,0.00019178,2]
[378653056,1754944245548,-460.0,0.00019178,2]
[378653057,1754944245557,-1408.99,0.00019178,2]
[378653058,1754944245566,-569.59,0.00019178,2]
[378653059,1754944245576,-460.0,0.00019178,2]
[378653060,1754944245585,-460.0,0.00019178,2]
[378653061,1754944245595,-460.0,0.00019178,2]
[378653062,1754944245604,-460.0,0.00019178,2]
[378653063,1754944245614,-460.0,0.00019178,2]
[378653064,1754944245623,-460.0,0.00019178,2]
[378653065,1754944245633,-460.0,0.00019178,2]
[378653066,1754944245642,-476.81930231,0.00019178,2]
[378653067,1754944245651,-460.0,0.00019178,2]
[378653068,1754944245661,-460.0,0.00019178,2]
[378653069,1754944245670,-460.0,0.00019178,2]
[378653070,1754944245679,-460.0,0.00019178,2]
[378653071,1754944245689,-460.0,0.00019178,2]
[378653072,1754944245698,-460.0,0.00019178,2]
[378653073,1754944245708,-460.0,0.00019178,2]
[378653074,1754944245717,-460.0,0.00019178,2]
[378653075,1754944245726,-460.0,0.00019178,2]
[378653076,1754944245736,-460.0,0.00019178,2]
[378653077,1754944245745,-513.3,0.00019178,2]
[378653078,1754944245754,-1696.05,0.00019178,2]
[378653079,1754944245764,-460.0,0.00019178,2]
[378653080,1754944245773,-460.0,0.00019178,2]
[378653081,1754944245783,-460.0,0.00019178,2]
[378653082,1754944245792,-460.0,0.00019178,2]
[378653083,1754944245802,-460.0,0.00019178,2]
[378653084,1754944245814,-460.0,0.00019178,2]
[378653085,1754944245824,-460.0,0.00019178,2]
[378653086,1754944245833,-461.3491597,0.00019178,2]
[378653087,1754944245843,-734.19,0.00019178,2]
[378653088,1754944245852,-2472.41,0.00019178,2]
[378653089,1754944245862,-460.0,0.00019178,2]
[378653090,1754944245872,-460.0,0.00019178,2]
[378653091,1754944245881,-498.75,0.00019178,2]
[378653092,1754944245892,-151.0,0.00019178,2]
[378653093,1754944245902,-151.427587,0.00019178,2]
[378653094,1754944245912,-703.21,0.00019178,2]
[378653095,1754944245921,-460.0,0.00019178,2]
[378653096,1754944245930,-6364.48,0.00019178,2]
[378653097,1754944245939,-460.0,0.00019178,2]
[378653098,1754944245949,-460.0,0.00019178,2]
[378653099,1754944245958,-632.28,0.00019178,2]
[378653101,1754944245968,-1560.99,0.00019178,2]
[378653102,1754944245977,-460.0,0.00019178,2]
[378653103,1754944246037,-460.0,0.00019178,2]
[378653104,1754944246047,-462.81218085,0.00019178,2]
[378653105,1754944246057,-460.02947924,0.00019178,2]
[378653106,1754944246066,-3713.94,0.00019178,2]
[378653107,1754944246077,-462.03153307,0.00019178,2]
[378653109,1754944246087,-460.0,0.00019178,2]
[378653110,1754944246097,-460.0,0.00019178,2]
[378653111,1754944246107,-460.0,0.00019178,2]
[378653112,1754944246119,-1051.03,0.00019178,2]
[378653113,1754944246128,-460.0,0.00019178,2]
[378653114,1754944246137,-460.0,0.00019178,2]
[378653115,1754944246147,-460.0,0.00019178,2]
[378653116,1754944246156,-460.0,0.00019178,2]
[378653117,1754944246165,-460.0,0.00019178,2]
[378653118,1754944246174,-472.8,0.00019178,2]
[378653119,1754944246183,-460.0,0.00019178,2]
[378653120,1754944246193,-460.0,0.00019178,2]
[378653121,1754944246202,-786.42,0.00019178,2]
[378653122,1754944246211,-738.19,0.00019178,2]
[378653124,1754944246220,-804.61,0.00019178,2]
[378653125,1754944246230,-460.0,0.00019178,2]
[378653126,1754944246239,-460.0,0.00019178,2]
[378653128,1754944246248,-460.0,0.00019178,2]
[378653129,1754944246257,-460.0,0.00019178,2]
[378653131,1754944246266,-465.8770543,0.00019178,2]
[378653132,1754944246275,-461.68189417,0.00019178,2]
[378653133,1754944246285,-460.0,0.00019178,2]
[378653134,1754944246294,-460.0,0.00019178,2]
[378653135,1754944246303,-460.0,0.00019178,2]
[378653136,1754944246313,-151.39906693,0.00019178,2]
[378653137,1754944246323,-500.0,0.00019178,2]
[378653138,1754944246333,-5000.0,0.00019178,2]
[378653139,1754944246343,-5000.0,0.00019178,2]
[378653140,1754944246352,-3403.31737433,0.00019178,2]
[378653141,1754944246362,-666.0,0.00019178,2]
[378653142,1754944246371,-1288.45625641,0.0001921,2]
[378653143,1754944246381,-920.69,0.00019214,2]
[378653144,1754944246390,-160.0,0.00019233,2]
[378653146,1754944246400,-12671.21867243,0.00019234,2]
[378653147,1754944246409,-160.0,0.00019234,2]
[378653149,1754944246418,-215.4905783,0.00019234,2]
[378653150,1754944246428,-160.0,0.00019234,2]
[378653152,1754944246438,-160.0,0.00019234,2]
[378653153,1754944246447,-216.68257536,0.00019234,2]
[378653154,1754944246456,-160.0,0.00019234,2]
[378653155,1754944246465,-527.9539256,0.00019234,2]
[378653156,1754944246475,-231.9940742,0.00019234,2]
[378653158,1754944246484,-461.69158338,0.00019234,2]
[378653160,1754944246494,-843.18994796,0.00019234,2]
[378653161,1754944246503,-160.0,0.00019234,2]
[378653162,1754944246512,-417.15472785,0.00019234,2]
[378653163,1754944246522,-160.0,0.00019234,2]
[378653164,1754944246532,-160.0,0.00019236,2]
[378653166,1754944246541,-160.0,0.00019236,2]
[378653168,1754944246551,-254.907301,0.00019236,2]
[378653169,1754944246560,-227.828866,0.00019236,2]
[378653170,1754944246569,-151.0,0.00019236,2]
[378653171,1754944246580,-151.870327,0.00019236,2]
[378653172,1754944246590,-151.0,0.00019236,2]
[378653174,1754944246599,-151.0,0.00019236,2]
[378653175,1754944246608,-220.984005,0.00019236,2]
[378653176,1754944246617,-152.300402,0.00019236,2]
[378653177,1754944246626,-2124.623818,0.00019236,2]
[378653178,1754944246635,-2124.623818,0.00019236,2]
[378653179,1754944246644,-151.0,0.00019236,2]
[378653181,1754944246654,-151.0,0.00019236,2]
[378653182,1754944246663,-155.426614,0.00019236,2]
[378653183,1754944246673,-151.0,0.00019236,2]
[378653184,1754944246682,-151.0,0.00019236,2]
[378653185,1754944246691,-151.0,0.00019236,2]
[378653186,1754944246700,-151.0,0.00019236,2]
[378653187,1754944246709,-160.0,0.00019237,2]
[378653188,1754944246719,-160.0,0.00019237,2]
[378653189,1754944246728,-325.0,0.00019237,2]
[378653190,1754944246737,-325.0,0.00019237,2]
[378653191,1754944246748,-325.0,0.00019237,2]
[378653192,1754944246759,-1288.45625641,0.00019281,2]
[378653193,1754944246768,-151.0,0.000193,2]
[378653194,1754944246777,-1472.0,0.00019326,2]
[378653195,1754944246787,-151.0,0.00019329,2]
[378653196,1754944246796,-151.0,0.00019329,2]
[378653197,1754944246806,-151.0,0.00019329,2]
[378653198,1754944246820,-151.0,0.00019329,2]
[378653199,1754944246830,-151.0,0.00019329,2]
[378653200,1754944246840,-151.0,0.00019329,2]
[378653201,1754944246850,-151.0,0.00019329,2]
[378653202,1754944246860,-1364.229113,0.00019329,2]
[378653203,1754944246869,-1364.229113,0.00019329,2]
[378653204,1754944246878,-371.458796,0.00019329,2]
[378653205,1754944246889,-159.451413,0.00019329,2]
[378653206,1754944246899,-371.458796,0.00019329,2]
[378653207,1754944246908,-159.451413,0.00019329,2]
[378653208,1754944246917,-151.0,0.00019329,2]
[378653209,1754944246928,-151.0,0.00019329,2]
[378653210,1754944246937,-100000.0,0.00019329,2]
[378653211,1754944246951,-1288.45625641,0.00019352,2]
[378653212,1754944246967,-920.69,0.00019361,2]
[378653213,1754944246975,-1472.0,0.00019362,2]
[378653214,1754944246985,-200.0,0.00019369,15]
[378653215,1754944246994,-200.0,0.00019369,15]
[378653216,1754944247003,-200.0,0.00019369,15]
[378653217,1754944247013,-200.0,0.00019369,15]
[378653218,1754944247021,-151.0,0.000194,2]
[378653219,1754944247035,-987.792,0.00019418,2]
[378653220,1754944247045,-636.0,0.00019418,2]
[378653221,1754944247054,-2151.0,0.00019418,2]
[378653222,1754944247062,-408.0,0.00019418,2]
[378653223,1754944247071,-416.844,0.00019418,2]
[378653224,1754944247080,-920.69,0.00019451,2]
[378653225,1754944247089,-920.69,0.00019451,2]
[378653226,1754944247098,-920.69,0.00019451,2]
[378653227,1754944247107,-920.69,0.00019451,2]
[378653228,1754944247117,-920.69,0.00019451,2]
[378653229,1754944247127,-920.69,0.00019451,2]
[378653230,1754944247136,-920.69,0.00019451,2]
[378653231,1754944247145,-920.69,0.00019451,2]
[378653232,1754944247155,-920.82879212,0.00019451,2]
[378653233,1754944247164,-350.69320462,0.00019451,2]
[378653234,1754944247173,-151.0,0.00019452,2]
[378653235,1754944247182,-151.0,0.00019452,2]
[378653236,1754944247192,-500.0,0.00019452,2]
[378653237,1754944247201,-151.0,0.00019452,2]
[378653238,1754944247211,-500.0,0.00019452,2]
[378653239,1754944247220,-500.0,0.00019452,2]
[378653240,1754944247229,-556.4551203,0.00019452,2]
[378653241,1754944247238,-151.0,0.00019452,2]
[378653242,1754944247248,-151.0,0.00019452,2]
[378653243,1754944247257,-203.47137086,0.00019452,2]
[378653244,1754944247266,-151.0,0.00019452,2]
[378653245,1754944247275,-500.0,0.00019452,2]
[378653246,1754944247284,-155.57098955,0.00019452,2]
[378653247,1754944247293,-151.0,0.00019452,2]
[378653248,1754944247302,-500.0,0.00019452,2]
[378653249,1754944247312,-151.0,0.00019452,2]
[378653250,1754944247321,-500.0,0.00019452,2]
[378653251,1754944247331,-151.0,0.00019452,2]
[378653252,1754944247340,-500.0,0.00019452,2]
[378653253,1754944247349,-198.0,0.00019452,2]
[378653254,1754944247358,-154.51495508,0.00019452,2]
[378653255,1754944247367,-151.0,0.00019452,2]
[378653256,1754944247377,-151.0,0.00019452,2]
[378653257,1754944247386,-500.0,0.00019452,2]
[378653258,1754944247395,-500.0,0.00019452,2]
[378653259,1754944247404,-151.0,0.00019452,2]
[378653260,1754944247413,-151.0,0.00019452,2]
[378653261,1754944247423,-151.0,0.00019452,2]
[378653262,1754944247433,-460.0,0.00019452,2]
[378653263,1754944247442,-2000.0,0.00019452,2]
[378653264,1754944247451,-2000.0,0.00019452,2]
[378653265,1754944247460,-710.27,0.00019452,2]
[378653266,1754944247469,-460.0,0.00019452,2]
[378653267,1754944247478,-500.90729538,0.00019452,2]
[378653268,1754944247488,-460.0,0.00019452,2]
[378653269,1754944247497,-460.0,0.00019452,2]
[378653270,1754944247507,-460.0,0.00019452,2]
[378653271,1754944247515,-460.0,0.00019452,2]
[378653272,1754944247524,-460.0,0.00019452,2]
[378653273,1754944247533,-460.0,0.00019452,2]
[378653274,1754944247543,-462.89246635,0.00019452,2]
[378653275,1754944247553,-460.0,0.00019452,2]
[378653276,1754944247562,-460.0,0.00019452,2]
[378653277,1754944247571,-496.78486391,0.00019452,2]
[378653278,1754944247581,-460.0,0.00019452,2]
[378653279,1754944247590,-460.0,0.00019452,2]
[378653280,1754944247599,-460.0,0.00019452,2]
[378653281,1754944247608,-460.0,0.00019452,2]
[378653282,1754944247617,-460.0,0.00019452,2]
[378653283,1754944247626,-460.0,0.00019452,2]
[378653284,1754944247635,-460.0,0.00019452,2]
[378653285,1754944247644,-460.0,0.00019452,2]
[378653286,1754944247653,-460.0,0.00019452,2]
[378653287,1754944247662,-460.0,0.00019452,2]
[378653288,1754944247674,-162.92290541,0.00019452,2]
[378653289,1754944247684,-460.0,0.00019452,2]
[378653290,1754944247697,-503.14,0.00019452,2]
[378653291,1754944247706,-460.0,0.00019452,2]
[378653292,1754944247716,-460.0,0.00019452,2]
[378653293,1754944247725,-460.0,0.00019452,2]
[378653294,1754944247734,-460.0,0.00019452,2]
[378653295,1754944247744,-467.18,0.00019452,2]
[378653296,1754944247753,-1028.23,0.00019452,2]
[378653297,1754944247762,-460.0,0.00019452,2]
[378653298,1754944247771,-460.0,0.00019452,2]
[378653299,1754944247780,-460.0,0.00019452,2]
[378653300,1754944247789,-941.44,0.00019452,2]
[378653301,1754944247798,-485.96793181,0.00019452,2]
[378653302,1754944247807,-460.0,0.00019452,2]
[378653303,1754944247818,-460.0,0.00019452,2]
[378653304,1754944247828,-247.86691074,0.00019452,2]
[378653305,1754944247838,-460.0,0.00019452,2]
[378653306,1754944247847,-1288.89,0.00019452,2]
[378653307,1754944247856,-460.0,0.00019452,2]
[378653308,1754944247866,-472.71,0.00019452,2]
[378653309,1754944247875,-485.52889551,0.00019452,2]
[378653310,1754944247886,-460.0,0.00019452,2]
[378653311,1754944247897,-460.0,0.00019452,2]
[378653312,1754944247906,-460.0,0.00019452,2]
[378653313,1754944247916,-584.65,0.00019452,2]
[378653314,1754944247925,-460.0,0.00019452,2]
[378653315,1754944247934,-508.69465603,0.00019452,2]
[378653316,1754944247943,-460.0,0.00019452,2]
[378653317,1754944247952,-460.0,0.00019452,2]
[378653318,1754944247962,-460.0,0.00019452,2]
[378653319,1754944247971,-551.91860983,0.00019452,2]
[378653320,1754944247980,-460.0,0.00019452,2]
[378653321,1754944247989,-460.0,0.00019452,2]
[378653322,1754944247998,-460.0,0.00019452,2]
[378653323,1754944248007,-460.0,0.00019452,2]
[378653324,1754944248016,-460.0,0.00019452,2]
[378653325,1754944248025,-460.0,0.00019452,2]
[378653326,1754944248034,-498.50960345,0.00019452,2]
[378653327,1754944248044,-460.0,0.00019452,2]
[378653328,1754944248053,-506.64214284,0.00019452,2]
[378653329,1754944248063,-460.0,0.00019452,2]
[378653330,1754944248073,-460.0,0.00019452,2]
[378653331,1754944248084,-462.17,0.00019452,2]
[378653332,1754944248093,-3532.8,0.00019452,2]
[378653333,1754944248103,-460.0,0.00019452,2]
[378653334,1754944248112,-462.63817814,0.00019452,2]
[378653335,1754944248122,-460.0,0.00019452,2]
[378653336,1754944248131,-460.0,0.00019452,2]
[378653337,1754944248140,-460.0,0.00019452,2]
[378653338,1754944248150,-460.0,0.00019452,2]
[378653339,1754944248159,-460.0,0.00019452,2]
[378653340,1754944248168,-460.0,0.00019452,2]
[378653341,1754944248177,-460.0,0.00019452,2]
[378653342,1754944248187,-460.0,0.00019452,2]
[378653343,1754944248196,-460.0,0.00019452,2]
[378653344,1754944248206,-151.0,0.00019452,2]
[378653345,1754944248215,-151.0,0.00019452,2]
[378653346,1754944248224,-460.0,0.00019452,2]
[378653347,1754944248233,-460.0,0.00019452,2]
[378653348,1754944248243,-460.0,0.00019452,2]
[378653349,1754944248252,-460.0,0.00019452,2]
[378653350,1754944248263,-460.0,0.00019452,2]
[378653351,1754944248272,-460.0,0.00019452,2]
[378653352,1754944248282,-405.0774063,0.00019452,2]
[378653353,1754944248292,-460.0,0.00019452,2]
[378653354,1754944248301,-460.0,0.00019452,2]
[378653355,1754944248311,-461.52856998,0.00019452,2]
[378653356,1754944248320,-272.826563,0.00019452,2]
[378653357,1754944248330,-272.826563,0.00019452,2]
[378653358,1754944248340,-460.0,0.00019452,2]
[378653359,1754944248350,-272.826563,0.00019452,2]
[378653360,1754944248360,-460.0,0.00019452,2]
[378653361,1754944248369,-272.826563,0.00019452,2]
[378653362,1754944248378,-460.0,0.00019452,2]
[378653363,1754944248388,-539.06,0.00019452,2]
[378653364,1754944248397,-909.29,0.00019452,2]
[378653365,1754944248406,-460.0,0.00019452,2]
[378653366,1754944248415,-712.57,0.00019452,2]
[378653367,1754944248424,-460.0,0.00019452,2]
[378653368,1754944248433,-449.29980483,0.00019452,2]
[378653369,1754944248443,-460.0,0.00019452,2]
[378653370,1754944248452,-460.0,0.00019452,2]
[378653371,1754944248462,-460.0,0.00019452,2]
[378653372,1754944248471,-1595.13,0.00019452,2]
[378653373,1754944248480,-460.0,0.00019452,2]
[378653374,1754944248489,-460.0,0.00019452,2]
[378653375,1754944248499,-460.0,0.00019452,2]
[378653376,1754944248507,-460.0,0.00019452,2]
[378653377,1754944248517,-4664.43,0.00019452,2]
[378653378,1754944248526,-460.0,0.00019452,2]
[378653379,1754944248535,-460.0,0.00019452,2]
[378653380,1754944248545,-560.10991536,0.00019452,2]
[378653381,1754944248555,-151.0,0.00019452,2]
[378653382,1754944248564,-151.0,0.00019452,2]
[378653383,1754944248573,-460.0,0.00019452,2]
[378653384,1754944248586,-151.0,0.00019452,2]
[378653385,1754944248596,-151.0,0.00019452,2]
[378653386,1754944248606,-460.0,0.00019452,2]
[378653387,1754944248615,-533.99,0.00019452,2]
[378653388,1754944248625,-542.72,0.00019452,2]
[378653389,1754944248635,-424.67763673,0.00019452,2]
[378653390,1754944248645,-460.0,0.00019452,2]
[378653391,1754944248655,-460.0,0.00019452,2]
[378653392,1754944248665,-569.27,0.00019452,2]
[378653393,1754944248675,-460.0,0.00019452,2]
[378653394,1754944248686,-460.0,0.00019452,2]
[378653395,1754944248696,-460.0,0.00019452,2]
[378653396,1754944248706,-151.359225,0.00019452,2]
[378653397,1754944248715,-460.0,0.00019452,2]
[378653398,1754944248724,-473.7047145,0.00019452,2]
[378653399,1754944248733,-470.91817191,0.00019452,2]
[378653400,1754944248742,-460.0,0.00019452,2]
[378653401,1754944248753,-460.0,0.00019452,2]
[378653402,1754944248762,-460.0,0.00019452,2]
[378653403,1754944248772,-460.0,0.00019452,2]
[378653404,1754944248781,-460.0,0.00019452,2]
[378653405,1754944248790,-657.06,0.00019452,2]
[378653406,1754944248799,-460.0,0.00019452,2]
[378653407,1754944248808,-460.0,0.00019452,2]
[378653408,1754944248820,-153.719444,0.00019452,2]
[378653409,1754944248832,-225.24655388,0.00019452,2]
[378653410,1754944248841,-1203.92,0.00019452,2]
[378653411,1754944248851,-4030.19,0.00019452,2]
[378653412,1754944248860,-460.0,0.00019452,2]
[378653413,1754944248869,-460.0,0.00019452,2]
[378653414,1754944248879,-460.0,0.00019452,2]
[378653415,1754944248888,-743.37,0.00019452,2]
[378653416,1754944248900,-1004.8,0.00019452,2]
[378653417,1754944248909,-460.0,0.00019452,2]
[378653418,1754944248918,-1389.23,0.00019452,2]
[378653419,1754944248927,-923.12,0.00019452,2]
[378653420,1754944248937,-1348.02,0.00019452,2]
[378653421,1754944248946,-416.09324694,0.00019452,2]
[378653422,1754944248955,-460.0,0.00019452,2]
[378653423,1754944248964,-460.0,0.00019452,2]
[378653424,1754944248973,-461.03477258,0.00019452,2]
[378653425,1754944248982,-151.0,0.00019452,2]
[378653426,1754944248991,-155.803505,0.00019452,2]
[378653427,1754944249000,-460.0,0.00019452,2]
[378653428,1754944249009,-475.26,0.00019452,2]
[378653429,1754944249018,-460.0,0.00019452,2]
[378653430,1754944249028,-460.0,0.00019452,2]
[378653431,1754944249037,-318.50767335,0.00019452,2]
[378653432,1754944249046,-460.0,0.00019452,2]
[378653433,1754944249056,-750.69,0.00019452,2]
[378653434,1754944249066,-499.40042012,0.00019452,2]
[378653435,1754944249077,-3942.56,0.00019452,2]
[378653436,1754944249086,-460.0,0.00019452,2]
[378653437,1754944249096,-460.0,0.00019452,2]
[378653438,1754944249105,-151.0,0.00019452,2]
[378653439,1754944249115,-151.0,0.00019452,2]
[378653440,1754944249125,-664.71,0.00019452,2]
[378653441,1754944249135,-273.34242485,0.00019452,2]
[378653442,1754944249144,-484.78552915,0.00019452,2]
[378653443,1754944249154,-460.0,0.00019452,2]
[378653444,1754944249164,-460.0,0.00019452,2]
[378653445,1754944249173,-460.0,0.00019452,2]
[378653446,1754944249183,-460.0,0.00019452,2]
[378653447,1754944249193,-460.0,0.00019452,2]
[378653448,1754944249203,-460.0,0.00019452,2]
[378653449,1754944249212,-460.0,0.00019452,2]
[378653450,1754944249222,-460.0,0.00019452,2]
[378653451,1754944249232,-438.44634756,0.00019452,2]
[378653452,1754944249242,-460.0,0.00019452,2]
[378653453,1754944249251,-734.05,0.00019452,2]
[378653454,1754944249261,-511.0,0.00019452,2]
[378653455,1754944249270,-151.0,0.00019452,2]
[378653456,1754944249281,-151.0,0.00019452,2]
[378653457,1754944249291,-460.0,0.00019452,2]
[378653458,1754944249302,-460.0,0.00019452,2]
[378653459,1754944249311,-815.65,0.00019452,2]
[378653460,1754944249321,-460.0,0.00019452,2]
[378653461,1754944249331,-460.0,0.00019452,2]
[378653462,1754944249340,-460.0,0.00019452,2]
[378653463,1754944249350,-904.31,0.00019452,2]
[378653464,1754944249360,-460.0,0.00019452,2]
[378653465,1754944249369,-1707.08,0.00019452,2]
[378653466,1754944249379,-460.0,0.00019452,2]
[378653467,1754944249388,-637.0,0.00019452,2]
[378653468,1754944249398,-460.0,0.00019452,2]
[378653469,1754944249407,-298.73074238,0.00019452,2]
[378653470,1754944249416,-460.0,0.00019452,2]
[378653471,1754944249426,-460.0,0.00019452,2]
[378653472,1754944249435,-460.0,0.00019452,2]
[378653473,1754944249445,-460.0,0.00019452,2]
[378653474,1754944249454,-460.0,0.00019452,2]
[378653475,1754944249464,-362.445526,0.00019452,2]
[378653476,1754944249473,-460.0,0.00019452,2]
[378653477,1754944249482,-362.445526,0.00019452,2]
[378653478,1754944249492,-562.44,0.00019452,2]
[378653479,1754944249502,-460.0,0.00019452,2]
[378653480,1754944249511,-362.445526,0.00019452,2]
[378653481,1754944249521,-362.445526,0.00019452,2]
[378653482,1754944249531,-471.81070131,0.00019452,2]
[378653483,1754944249540,-725.16,0.00019452,2]
[378653484,1754944249550,-643.21,0.00019452,2]
[378653485,1754944249559,-460.0,0.00019452,2]
[378653486,1754944249569,-460.0,0.00019452,2]
[378653487,1754944249580,-460.0,0.00019452,2]
[378653488,1754944249589,-460.0,0.00019452,2]
[378653489,1754944249599,-460.0,0.00019452,2]
[378653490,1754944249608,-460.0,0.00019452,2]
[378653491,1754944249618,-460.0,0.00019452,2]
[378653492,1754944249627,-308.20540644,0.00019452,2]
[378653493,1754944249639,-2748.24,0.00019452,2]
[378653494,1754944249649,-151.0,0.00019452,2]
[378653495,1754944249660,-151.0,0.00019452,2]
[378653496,1754944249669,-460.0,0.00019452,2]
[378653497,1754944249679,-151.0,0.00019452,2]
[378653498,1754944249688,-151.0,0.00019452,2]
[378653499,1754944249699,-343.65240613,0.00019452,2]
[378653500,1754944249710,-151.0,0.00019452,2]
[378653501,1754944249719,-151.0,0.00019452,2]
[378653502,1754944249729,-460.0,0.00019452,2]
[378653503,1754944249738,-911.98,0.00019452,2]
[378653504,1754944249748,-460.0,0.00019452,2]
[378653505,1754944249757,-460.0,0.00019452,2]
[378653506,1754944249766,-2510.39,0.00019452,2]
[378653507,1754944249777,-460.0,0.00019452,2]
[378653508,1754944249786,-460.0,0.00019452,2]
[378653509,1754944249795,-460.0,0.00019452,2]
[378653510,1754944249806,-460.0,0.00019452,2]
[378653511,1754944249818,-616.05,0.00019452,2]
[378653512,1754944249828,-1066.02,0.00019452,2]
[378653513,1754944249837,-460.0,0.00019452,2]
[378653514,1754944249846,-559.8,0.00019452,2]
[378653515,1754944249855,-460.0,0.00019452,2]
[378653516,1754944249866,-460.0,0.00019452,2]
[378653517,1754944249875,-151.0,0.00019452,2]
[378653518,1754944249885,-210.76500845,0.00019452,2]
[378653519,1754944249895,-151.0,0.00019452,2]
[378653520,1754944249904,-460.0,0.00019452,2]
[378653521,1754944249914,-720.96,0.00019452,2]
[378653522,1754944249924,-151.0,0.00019452,2]
[378653523,1754944249933,-151.0,0.00019452,2]
[378653524,1754944249942,-631.89,0.00019452,2]
[378653525,1754944249951,-556.67,0.00019452,2]
[378653526,1754944249960,-460.0,0.00019452,2]
[378653527,1754944249970,-460.0,0.00019452,2]
[378653528,1754944249979,-460.0,0.00019452,2]
[378653529,1754944249988,-689.06,0.00019452,2]
[378653530,1754944249998,-461.60850003,0.00019452,2]
[378653531,1754944250007,-1915.99,0.00019452,2]
[378653532,1754944250016,-151.0,0.00019452,2]
[378653533,1754944250026,-600.18,0.00019452,2]
[378653534,1754944250035,-151.0,0.00019452,2]
[378653535,1754944250044,-1133.4,0.00019452,2]
[378653536,1754944250054,-460.0,0.00019452,2]
[378653537,1754944250064,-656.72,0.00019452,2]
[378653538,1754944250073,-460.0,0.00019452,2]
[378653539,1754944250084,-2182.33,0.00019452,2]
[378653540,1754944250094,-818.12,0.00019452,2]
[378653541,1754944250103,-777.08,0.00019452,2]
[378653542,1754944250112,-1000.0,0.00019452,2]
[378653543,1754944250122,-763.66,0.00019452,2]
[378653544,1754944250131,-460.0,0.00019452,2]
[378653545,1754944250140,-1364.229113,0.00019452,2]
[378653546,1754944250150,-1364.229113,0.00019452,2]
[378653547,1754944250159,-460.0,0.00019452,2]
[378653548,1754944250168,-460.0,0.00019452,2]
[378653549,1754944250177,-901.86,0.00019452,2]
[378653550,1754944250187,-1364.229113,0.00019452,2]
[378653551,1754944250196,-1364.229113,0.00019452,2]
[378653552,1754944250205,-460.0,0.00019452,2]
[378653553,1754944250214,-460.0,0.00019452,2]
[378653554,1754944250224,-460.0,0.00019452,2]
[378653555,1754944250233,-460.0,0.00019452,2]
[378653556,1754944250243,-1679.48,0.00019452,2]
[378653557,1754944250253,-460.0,0.00019452,2]
[378653558,1754944250263,-1496.67,0.00019452,2]
[378653559,1754944250272,-460.0,0.00019452,2]